bitfinex-derivatives/quotes_ETHF0:USTF0_20251107
["timestamp","ask_amount","ask_price","bid_price","bid_amount"]
[1762521060170,0.2732,3235.4,3235.2,0.50109]
[1762521060369,0.27713536,3235.4,3235.2,0.0037442]
[1762521060878,0.27713536,3235.4,3234.0,4.747]
[1762521060879,0.50122,3234.4,3234.3,3.2078]
[1762521061174,0.274,3234.7,3234.3,3.2078]
[1762521061376,0.50119,3234.6,3234.3,3.2078]
[1762521061674,0.77518,3234.7,3233.8,3.2078]
[1762521061865,0.77518,3234.7,3234.3,0.00330518]
[1762521062071,0.50121,3234.5,3234.3,0.00330518]
[1762521062268,3.70901,3234.5,3234.3,0.00330518]
[1762521062472,3.2078,3234.5,3234.3,0.00330518]
[1762521062673,0.274,3234.7,3234.4,0.50121]
[1762521062870,0.274,3234.7,3234.5,0.5012]
[1762521063071,0.27713536,3235.4,3234.6,3.2078]
[1762521063274,0.77821536,3235.4,3235.0,0.50113]
[1762521063476,0.27713536,3235.4,3235.1,0.5011]
[1762521063683,0.27713536,3235.4,3235.2,0.50109]
[1762521063887,0.274,3234.7,3234.6,3.70899]
[1762521064184,0.27713536,3235.4,3234.6,3.2078]
[1762521064385,0.27713536,3235.4,3235.2,0.50109]
[1762521064880,0.27713536,3235.4,3235.1,3.2078]
[1762521064881,0.50108,3235.3,3235.1,3.2078]
[1762521065076,0.274,3234.7,3234.3,0.00330518]
[1762521065377,0.274,3234.7,3234.5,0.5012]
[1762521065572,0.274,3234.7,3234.4,3.70902]
[1762521065777,0.274,3234.7,3234.5,0.5012]
[1762521065977,0.274,3234.7,3234.4,3.2078]
[1762521066179,3.2078,3235.3,3234.4,3.2078]
[1762521066374,0.274,3234.7,3234.5,0.5012]
[1762521066574,3.2078,3235.3,3235.1,0.50111]
[1762521066772,0.27713536,3235.4,3235.3,0.50108]
[1762521068180,0.0045756,3235.6,3235.5,0.50105]
[1762521068376,0.274,3236.8,3235.5,3.2078]
[1762521068578,3.2078,3236.4,3235.6,3.2078]
[1762521068878,0.274,3236.1,3236.0,3.70877]
[1762521069179,0.50083,3237.0,3236.0,3.70877]
[1762521069385,1.1010658,3238.1,3235.0,3.98610424]
[1762521069386,0.274,3239.6,3238.4,3.2078]
[1762521069589,0.274,3239.6,3239.5,3.2078]
[1762521069882,0.274,3239.6,3238.7,3.2124375]
[1762521069883,0.274,3238.9,3238.7,3.2124375]
[1762521070082,1.269485,3238.8,3238.7,0.0046375]
[1762521070380,9.27241454,3238.8,3238.7,0.00772991]
[1762521070678,0.50061,3238.4,3237.8,0.81706729]
[1762521070879,0.50061,3238.4,3237.6,3.2078]
[1762521070880,3.70844,3238.2,3237.7,0.81706729]
[1762521071178,3.2078,3238.2,3237.6,4.02486729]
[1762521071376,3.2078,3238.2,3236.3,2.2227066]
[1762521071377,0.274,3237.6,3237.5,0.81706729]
[1762521071580,0.50076,3237.4,3237.2,0.81706729]
[1762521071781,0.50076,3237.4,3237.2,0.00463026]
[1762521071782,1.269485,3237.3,3237.2,0.00463026]
[1762521072085,1.269485,3237.3,3237.2,0.00725465]
[1762521072481,1.770255,3237.3,3237.2,0.00725465]
[1762521072683,9.770255,3237.3,3237.2,0.00725465]
[1762521072882,1.269485,3237.3,3237.2,0.00725465]
[1762521073685,1.269485,3237.4,3237.2,0.82432194]
[1762521073881,1.543485,3237.6,3237.3,0.50077]
[1762521074086,0.274,3237.6,3237.5,3.2078]
[1762521074473,1.543485,3237.6,3237.5,3.2078]
[1762521074680,0.274,3237.6,3237.5,3.2078]
[1762521074880,1.543485,3237.6,3237.5,3.2078]
[1762521075378,1.543485,3237.6,3237.5,4.02214389]
[1762521075580,0.274,3237.6,3237.5,4.02214389]
[1762521075881,0.274,3238.9,3238.6,0.50056]
[1762521076084,0.274,3238.9,3238.7,4.02130251]
[1762521076286,0.274,3238.9,3238.7,3.2078]
[1762521076582,0.274,3239.6,3238.8,0.50053]
[1762521076783,0.274,3239.6,3239.5,3.2078]
[1762521076980,0.274,3240.8,3239.5,3.2078]
[1762521077183,0.274,3240.8,3240.2,3.2078]
[1762521077184,0.50028,3240.6,3240.2,3.2078]
[1762521077383,1.269485,3240.5,3240.2,3.2104374]
[1762521077678,0.0025844,3240.6,3240.4,0.50028]
[1762521077879,1.269485,3240.7,3240.4,1.08189747]
[1762521078078,0.274,3240.9,3240.6,3.2078]
[1762521078478,1.269485,3240.7,3240.6,3.2078]
[1762521078679,3.2078,3241.7,3240.6,9.379]
[1762521078884,3.2078,3241.7,3240.2,0.81652003]
[1762521078885,0.2762745,3241.6,3241.1,3.2078]
[1762521079286,3.2078,3243.3,3241.5,3.2078]
[1762521079487,0.274,3241.8,3241.6,3.2078]
[1762521079877,1.269485,3241.7,3241.6,3.2078]
[1762521080282,1.27279936,3241.7,3241.6,3.2078]
[1762521080788,0.274,3242.4,3241.6,3.2078]
[1762521081089,0.274,3242.4,3240.9,1.89114984]
[1762521081090,0.274,3241.8,3241.7,3.2078]
[1762521081388,0.274,3241.8,3241.3,3.2078]
[1762521081587,1.269485,3241.5,3241.3,3.2078]
[1762521081780,1.27264178,3241.5,3241.3,3.2078]
[1762521081979,1.269485,3241.4,3241.3,3.2078]
[1762521084493,0.00315678,3241.5,3241.3,3.2078]
[1762521084697,0.00315678,3241.5,3241.4,0.50014]
[1762521085393,0.00315678,3241.5,3241.3,3.2078]
[1762521085595,1.269485,3241.4,3241.3,3.2078]
[1762521086290,0.274,3240.9,3240.8,3.2078]
[1762521086592,0.00315678,3241.5,3241.3,0.50014]
[1762521086992,1.27264178,3241.5,3241.3,0.50014]
[1762521087200,0.00315678,3241.5,3241.3,0.50014]
[1762521087497,1.269485,3241.4,3241.2,3.70796]
[1762521087687,1.27264178,3241.5,3241.2,3.2078]
[1762521087894,0.00315678,3241.5,3241.3,0.50014]
[1762521088392,1.269485,3241.4,3241.2,3.2078]
[1762521088593,1.269485,3241.3,3241.2,3.2078]
[1762521089091,9.269485,3241.3,3240.8,3.2078]
[1762521089295,1.269485,3241.0,3240.8,3.2078]
[1762521089496,1.269485,3241.3,3241.0,0.5002]
[1762521089696,1.269485,3241.2,3241.0,0.5002]
[1762521089893,1.269485,3241.2,3240.8,3.2078]
[1762521090092,0.00315678,3241.5,3241.1,0.50017]
[1762521090400,1.269485,3241.2,3241.1,3.70797]
[1762521090794,1.269485,3241.2,3241.1,3.2078]
[1762521091092,0.50018,3241.1,3240.6,3.70805]
[1762521091292,1.269485,3240.9,3240.6,3.2078]
[1762521091595,1.269485,3241.2,3240.9,0.50021]
[1762521091797,1.269485,3241.2,3240.6,3.2078]
[1762521091997,1.269485,3240.9,3240.7,0.50024]
[1762521092298,0.50014,3241.4,3240.7,0.50024]
[1762521092299,1.269485,3241.2,3240.7,0.50023]
[1762521092593,0.00315678,3241.5,3240.2,0.00726766]
[1762521092594,1.269485,3241.1,3241.0,3.2078]
[1762521092797,1.269485,3241.2,3241.0,3.2078]
[1762521093196,1.269485,3241.1,3241.0,3.2078]
[1762521093701,1.769665,3241.1,3241.0,3.2078]
[1762521093899,0.4809,3240.8,3240.2,0.00726766]
[1762521094197,0.50025,3240.7,3240.2,0.00726766]
[1762521094402,1.269485,3240.5,3240.2,0.00726766]
[1762521094595,3.7081,3240.4,3240.2,0.00726766]
[1762521094897,0.4809,3240.0,3239.3,3.2078]
[1762521095094,0.50037,3239.9,3239.3,3.2078]
[1762521095298,1.269485,3239.7,3239.1,0.50049]
[1762521095499,1.269485,3239.7,3238.9,10.364]
[1762521095692,0.4809,3239.2,3238.7,0.50055]
[1762521095899,0.48384223,3239.2,3238.7,0.0023176]
[1762521096195,1.269485,3238.9,3238.7,0.0023176]
[1762521096403,0.50054,3238.8,3238.7,0.0023176]
[1762521096599,9.269485,3238.8,3238.7,1.76e-05]
[1762521097699,0.50053,3238.9,3238.1,1.62700503]
[1762521097700,0.4809,3238.4,3238.1,1.08189747]
[1762521097908,3.2078,3238.3,3237.6,1.08189747]
[1762521098095,1.269485,3238.1,3237.7,0.5007]
[1762521098295,1.770155,3238.0,3237.6,1.08189747]
[1762521098706,1.269485,3237.7,3237.6,0.00278125]
[1762521099011,1.269485,3238.0,3237.9,0.50067]
[1762521099311,1.269485,3238.1,3238.0,0.50066]
[1762521099514,0.4809,3238.4,3238.3,0.50062]
[1762521099812,1.269485,3238.1,3238.0,1.08562048]
[1762521100115,1.269485,3238.1,3238.0,1.62700503]
[1762521100516,1.269485,3238.1,3237.9,3.70847]
[1762521100809,1.269485,3238.0,3237.9,3.70848]
[1762521101015,0.4562,3238.4,3238.2,0.50063]
[1762521101212,0.4562,3238.4,3238.3,1.08622183]
[1762521101614,10.226285,3238.4,3238.2,1.08622183]
[1762521101816,1.269485,3238.1,3237.9,1.58689183]
[1762521102015,1.269485,3238.1,3238.0,4.29402183]
[1762521102316,0.4562,3238.4,3238.0,4.83713275]
[1762521102516,0.4562,3238.4,3238.2,1.0869515]
[1762521102914,1.269485,3238.3,3238.2,1.0869515]
[1762521103109,1.269485,3238.3,3238.1,1.0869515]
[1762521103312,0.4562,3238.4,3238.2,1.0869515]
[1762521103714,1.269485,3238.3,3238.2,1.58721702]
[1762521103913,1.269485,3238.3,3238.2,1.08637779]
[1762521104121,1.770105,3238.3,3238.1,1.08637779]
[1762521104320,1.269485,3238.2,3238.1,1.08637779]
[1762521104622,1.269485,3238.2,3238.1,0.50065]
[1762521104920,1.770115,3238.2,3238.1,1.08605982]
[1762521105216,1.269485,3238.2,3238.0,4.29385982]
[1762521105417,1.269485,3238.1,3238.0,3.70846]
[1762521105617,0.48384223,3239.2,3238.8,0.50053]
[1762521105810,0.48384223,3239.2,3239.0,0.50051]
[1762521106206,0.48384223,3239.2,3238.8,1.08584882]
[1762521106412,0.50049,3239.1,3238.7,1.58639882]
[1762521106613,3.69164223,3239.2,3238.7,1.08584882]
[1762521106813,0.98432223,3239.2,3239.0,0.5005]
[1762521107016,0.50049,3239.1,3238.8,1.08584882]
[1762521107214,0.5005,3239.1,3238.7,1.58638882]
[1762521107410,0.5005,3239.1,3238.7,1.08584882]
[1762521107617,3.69164223,3239.2,3238.7,1.08584882]
[1762521107812,0.48384223,3239.2,3238.7,1.08584882]
[1762521108016,0.00294223,3239.2,3239.1,3.70829]
[1762521108224,0.00463026,3239.3,3239.2,0.50048]
[1762521108422,0.00463026,3239.3,3239.2,1.08477511]
[1762521108720,0.4562,3239.2,3239.1,1.08477511]
[1762521109122,0.96044123,3239.2,3239.1,1.08477511]
[1762521109415,0.50051,3239.0,3238.8,1.62877323]
[1762521109615,0.50052,3238.9,3238.8,1.0854941]
[1762521109817,3.66776123,3239.2,3238.7,3.2078]
[1762521110219,0.50053,3238.9,3238.7,3.2078]
[1762521110422,0.50054,3238.8,3238.7,3.2078]
[1762521111115,0.50054,3238.8,3238.6,1.0854941]
[1762521111116,0.50055,3238.7,3238.6,1.0854941]
[1762521111317,8.0,3238.7,3238.0,1.0854941]
[1762521111517,3.2078,3238.4,3238.0,1.0854941]
[1762521111725,3.2078,3238.4,3237.9,1.5861741]
[1762521111919,3.7084,3238.4,3238.0,0.50066]
[1762521112216,0.50063,3238.2,3237.9,1.5861641]
[1762521112616,3.2078,3238.0,3237.8,1.0854941]
[1762521112816,3.2078,3238.0,3237.7,1.0854941]
[1762521113013,0.50065,3238.1,3237.8,1.0854941]
[1762521113211,3.2078,3238.5,3237.8,1.0854941]
[1762521113212,3.2078,3238.0,3237.9,0.50068]
[1762521113420,3.70845,3238.1,3237.9,1.0854941]
[1762521113612,3.70845,3238.1,3237.8,1.0854941]
[1762521113819,3.70845,3238.1,3237.7,1.0854941]
[1762521114017,3.70845,3238.1,3237.8,1.0854941]
[1762521114225,0.50068,3237.9,3237.8,1.0854941]
[1762521114420,0.5007,3237.8,3237.7,1.0854941]
[1762521114824,0.50069,3238.0,3237.7,1.5862141]
[1762521115121,3.2078,3238.1,3237.7,1.0854941]
[1762521115624,0.5007,3237.8,3237.7,1.0854941]
[1762521115824,3.70847,3238.1,3237.7,1.5862141]
[1762521116026,3.2078,3238.1,3237.7,1.0854941]
[1762521116217,3.2078,3238.1,3237.6,1.08827535]
[1762521116426,4.03115,3238.2,3237.8,0.5007]
[1762521116621,4.03115,3238.2,3237.8,1.08761385]
[1762521116622,3.2078,3238.2,3237.8,1.08761385]
[1762521116820,0.50064,3238.3,3238.0,0.50066]
[1762521117016,0.50061,3238.4,3237.8,1.08761385]
[1762521117217,3.70846,3238.2,3237.9,1.58830385]
[1762521117415,3.2078,3238.6,3237.9,1.08761385]
[1762521117617,0.50055,3238.9,3238.1,4.29541385]
[1762521117826,3.2078,3239.0,3238.3,1.08761385]
[1762521118022,0.50063,3238.3,3238.2,1.08761385]
[1762521118222,0.50065,3238.2,3238.1,1.08761385]
[1762521118521,3.70845,3238.2,3238.0,1.58829385]
[1762521118723,0.50066,3238.1,3238.0,1.08761385]
[1762521118915,3.2078,3238.2,3237.9,1.08761385]
[1762521119126,3.2078,3238.2,3238.0,1.08761385]
[1762521119329,3.70845,3238.2,3238.1,1.08761385]
[1762521119622,3.2078,3238.2,3238.0,1.08761385]
[1762521119829,3.2078,3238.2,3238.0,1.58829385]
[1762521120017,3.2078,3238.2,3238.1,0.50066]
[1762521120223,3.2078,3238.2,3238.1,1.58827385]
[1762521120425,3.2078,3238.2,3238.1,1.08761385]
[1762521120626,0.50066,3238.1,3238.0,1.08761385]
[1762521121334,8.0,3238.1,3237.8,1.62877323]
[1762521121527,0.50069,3237.9,3237.8,1.62877323]
[1762521122230,0.50071,3237.8,3237.7,1.09179565]
[1762521122423,3.2078,3237.8,3237.7,1.09294593]
[1762521122624,3.70851,3237.8,3237.7,1.09291893]
[1762521122827,11.70851,3237.8,3237.7,1.09291893]
[1762521123327,9.29302,3237.7,3237.6,1.8e-07]
[1762521123530,1.14474,3237.6,3237.5,3.044e-05]
[1762521123727,9.14474,3237.6,3237.5,3.044e-05]
[1762521123933,1.14025,3236.9,3236.8,1.62877323]
[1762521124131,1.14026,3236.8,3236.7,1.62877323]
[1762521124326,0.50091,3236.6,3236.3,2.67400058]
[1762521124522,3.2078,3236.4,3236.3,2.17645487]
[1762521124824,4.34812,3236.4,3236.3,0.00339429]
[1762521125426,11.8472,3236.4,3236.3,0.00339429]
[1762521125635,8.0,3236.3,3235.1,6.51918175]
[1762521125822,3.2078,3235.8,3234.8,5.92412573]
[1762521126026,1.53768937,3235.8,3235.5,2.71632573]
[1762521126324,3.70884,3235.7,3235.6,0.82645762]
[1762521126630,3.70884,3235.7,3235.6,0.82870086]
[1762521127126,11.70884,3235.7,3235.6,0.82870086]
[1762521127325,0.50108,3235.4,3235.3,0.00463026]
[1762521127525,0.50108,3235.4,3235.3,3.026e-05]
[1762521127731,0.50116,3234.9,3234.7,0.4806]
[1762521128129,3.2078,3235.2,3234.7,0.4806]
[1762521128327,0.50116,3234.9,3234.7,0.4837778]
[1762521129435,3.2078,3234.8,3234.7,0.0031778]
[1762521130131,3.70896,3234.9,3234.7,0.0031778]
[1762521130433,11.70896,3234.9,3234.7,0.0031778]
[1762521130633,8.0,3234.8,3234.7,0.0031778]
[1762521130934,0.50119,3234.7,3234.5,0.00463026]
[1762521131134,0.50128,3234.1,3234.0,0.4522]
[1762521131431,3.2078,3234.2,3233.5,0.50136]
[1762521131632,3.2078,3234.2,3233.4,0.50139]
[1762521131833,0.50132,3233.9,3233.5,0.50137]
[1762521132030,3.21123966,3234.2,3233.4,0.00356755]
[1762521132236,3.2078,3233.8,3233.4,0.00665865]
[1762521132429,0.50129,3234.1,3233.5,3.2078]
[1762521132630,0.50131,3234.0,3233.5,3.70917]
[1762521132831,0.00343966,3234.2,3234.0,0.95349]
[1762521133031,0.00343966,3234.2,3233.9,3.2078]
[1762521133228,3.2078,3234.1,3234.0,0.4522]
[1762521133426,0.00343966,3234.2,3234.0,0.4522]
[1762521133935,0.00343966,3234.2,3234.1,0.7886]
[1762521134131,3.2078,3234.7,3234.1,0.7886]
[1762521134336,0.00463026,3235.1,3234.7,0.4522]
[1762521134638,3.70897,3234.9,3234.7,0.4522]
[1762521135435,0.00344851,3234.9,3234.7,0.4522]
[1762521136733,0.50461851,3234.9,3234.7,0.4522]
[1762521137231,0.50123,3234.5,3234.1,3.2078]
[1762521137734,0.00344851,3234.9,3234.7,0.4522]
[1762521137927,0.50460851,3234.9,3234.7,0.4522]
[1762521138335,0.00344851,3234.9,3234.7,0.4522]
[1762521138941,3.2078,3234.8,3234.7,0.4522]
[1762521139234,3.2078,3234.8,3234.7,1.24785587]
[1762521139636,0.50460851,3234.9,3234.7,1.24785587]
[1762521139837,0.50460851,3234.9,3234.8,0.79565587]
[1762521140735,0.50127,3234.2,3234.0,0.4522]
[1762521140935,3.2078,3234.5,3234.0,0.4522]
[1762521141143,0.00344851,3234.9,3234.7,0.4522]
[1762521141838,0.50460851,3234.9,3234.7,0.4522]
[1762521142837,8.50460851,3234.9,3234.7,0.4522]
[1762521143442,8.50460851,3234.9,3234.0,0.4522]
[1762521143443,0.50128,3234.1,3234.0,0.4522]
[1762521143943,0.50137,3233.5,3233.4,0.00665865]
[1762521144137,0.50136,3233.7,3233.4,0.00665865]
[1762521144341,3.2078,3234.0,3233.4,0.00665865]
[1762521144539,0.50134,3233.7,3233.4,0.50804865]
[1762521145145,0.50136,3233.6,3233.4,0.00665865]
[1762521145841,0.50136,3233.6,3233.5,1.63583015]
[1762521146237,0.50139,3233.4,3233.3,0.4522]
[1762521146638,3.2078,3233.6,3233.3,0.4522]
[1762521146838,3.2078,3234.1,3234.0,0.4522]
[1762521147037,3.2078,3234.6,3234.0,0.4522]
[1762521147254,3.2078,3234.7,3234.0,0.45516189]
[1762521147453,0.50127,3234.2,3234.0,0.45516189]
[1762521147745,0.50128,3234.1,3234.0,0.45516189]
[1762521148139,3.2078,3234.3,3234.0,0.45516189]
[1762521148445,3.2078,3234.7,3234.0,0.45516189]
[1762521148646,3.70899,3234.7,3234.0,0.45516189]
[1762521148847,0.00344851,3234.9,3234.0,0.45516189]
[1762521148848,0.00344851,3234.9,3234.2,3.2078]
[1762521149148,0.50124,3234.4,3234.0,0.45516189]
[1762521149345,0.50126,3234.3,3234.0,0.45516189]
[1762521149647,3.2078,3234.3,3234.0,0.45516189]
[1762521149842,0.50128,3234.1,3234.0,0.45516189]
[1762521150242,3.2078,3234.3,3234.0,0.45516189]
[1762521150947,0.50128,3234.1,3234.0,0.45516189]
[1762521151651,8.50128,3234.1,3234.0,0.45516189]
[1762521152447,8.50128,3234.1,3234.0,0.00296189]
[1762521152750,0.50139,3233.4,3233.3,0.4522]
[1762521153057,3.70919,3233.4,3233.3,0.4522]
[1762521153753,3.70919,3233.4,3233.3,0.45570107]
[1762521154148,11.70919,3233.4,3233.3,0.45570107]
[1762521155949,3.2078,3233.4,3233.3,0.45570107]
[1762521156252,3.70919,3233.4,3233.3,0.45570107]
[1762521156554,3.70919,3233.4,3233.3,1.55775955]
[1762521156757,3.2078,3233.4,3233.3,1.82631107]
[1762521156956,0.50139,3233.4,3233.3,1.32490107]
[1762521157251,3.2078,3233.8,3233.4,0.50138]
[1762521157458,3.2078,3234.2,3234.0,0.4838]
[1762521157755,0.50128,3234.1,3234.0,0.4838]
[1762521157956,0.50128,3234.1,3234.0,1.58541328]
[1762521158351,0.50128,3234.1,3234.0,0.4838]
[1762521158546,3.2078,3234.2,3234.0,1.353]
[1762521158750,3.2078,3234.8,3234.7,0.4838]
[1762521158951,3.2078,3234.8,3234.7,1.58435853]
[1762521158952,3.70897,3234.8,3234.7,1.58435853]
[1762521159553,3.70897,3234.8,3234.7,0.4838]
[1762521159757,11.70897,3234.8,3234.7,0.4838]
[1762521159955,0.50122,3234.5,3234.4,1.10055853]
[1762521160150,0.50122,3234.5,3234.0,0.4838]
[1762521160151,0.50125,3234.3,3234.2,0.90405853]
[1762521160350,0.50128,3234.1,3234.0,0.4838]
[1762521161655,0.50139,3233.4,3233.3,0.45570107]
[1762521164558,0.50139,3233.4,3233.3,1.07e-06]
[1762521164855,8.50139,3233.4,3233.3,1.07e-06]
[1762521165059,0.50139,3233.4,3233.3,1.07e-06]
[1762521165853,8.50139,3233.4,3233.3,1.07e-06]
[1762521166351,0.50139,3233.4,3233.3,1.07e-06]
[1762521167757,8.50139,3233.4,3233.3,1.07e-06]
[1762521170868,18.51739,3233.4,3233.3,1.07e-06]
[1762521171752,8.50139,3233.4,3233.3,1.07e-06]
[1762521171953,18.50239,3233.4,3233.3,1.07e-06]
[1762521172263,0.50161,3232.0,3231.9,0.4886]
[1762521173156,0.5042216,3232.0,3231.9,0.49171361]
[1762521175267,10.4912216,3232.0,3231.9,0.49171361]
[1762521175961,0.50166,3231.7,3231.6,0.4886]
[1762521176169,3.70946,3231.7,3231.6,0.4886]
[1762521176363,0.50172,3231.3,3231.2,0.4886]
[1762521176569,3.70952,3231.3,3231.2,0.4886]
[1762521177066,3.70952,3231.3,3231.2,0.49175555]
[1762521177263,3.70952,3231.3,3230.4,0.4886]
[1762521177264,0.50184,3230.5,3230.4,0.4886]
[1762521177663,3.2078,3230.7,3230.4,1.2984]
[1762521177870,0.50184,3230.5,3230.4,1.2984]
[1762521178169,3.2078,3230.7,3230.4,1.2984]
[1762521178367,3.2078,3231.1,3231.0,0.4886]
[1762521178676,3.70955,3231.1,3231.0,0.4886]
[1762521178863,7.18955,3231.1,3231.0,0.4886]
[1762521179767,3.70955,3231.1,3231.0,0.4886]
[1762521180465,3.2078,3231.1,3231.0,1.2984]
[1762521180663,3.2078,3231.7,3231.6,0.5408]
[1762521180866,3.70946,3231.7,3231.6,0.5408]
[1762521182766,3.70945,3231.7,3231.6,0.5408]
[1762521183171,0.50165,3231.7,3231.6,0.5408]
[1762521183477,0.50165,3231.7,3231.6,1.4359]
[1762521183870,0.0026116,3232.0,3231.9,0.8951]
[1762521184282,0.5042216,3232.0,3231.9,0.8951]
[1762521184475,0.0026116,3232.0,3231.9,4.1029]
[1762521184978,0.5042216,3232.0,3231.9,0.8951]
[1762521185275,0.5042216,3232.0,3231.6,0.5408]
[1762521185276,0.50165,3231.7,3231.6,1.4359]
[1762521185677,3.2104116,3232.0,3231.7,0.8951]
[1762521185873,0.0026116,3232.0,3231.8,0.8951]
[1762521186076,0.50164,3231.9,3231.8,0.8951]
[1762521186279,0.50163,3231.9,3231.6,1.4359]
[1762521186469,0.50163,3231.9,3231.8,0.8951]
[1762521187077,0.50165,3231.7,3231.6,0.5408]
[1762521188179,0.50175,3231.1,3231.0,0.4886]
[1762521188382,3.70955,3231.1,3231.0,0.4886]
[1762521190383,0.50184,3230.5,3230.4,0.49085574]
[1762521190585,3.70964,3230.5,3230.4,0.49085574]
[1762521190978,0.50184,3230.5,3230.4,1.38595574]
[1762521191687,0.50184,3230.5,3230.4,0.49085574]
[1762521192088,0.50184,3230.5,3230.4,5.74e-06]
[1762521192089,3.70964,3230.5,3230.4,5.74e-06]
[1762521193182,3.70964,3230.5,3230.4,0.54080574]
[1762521193384,3.2078,3230.9,3230.4,1.43590574]
[1762521193683,0.50182,3230.7,3230.6,0.8951]
[1762521194484,0.50184,3230.5,3230.4,0.54080574]
[1762521194685,3.2078,3230.9,3230.4,1.43590574]
[1762521195186,0.50181,3230.7,3230.6,0.8951]
[1762521195384,0.5018,3230.8,3230.7,0.8951]
[1762521195588,3.2078,3230.9,3230.8,0.8951]
[1762521195779,3.70958,3230.9,3230.8,0.8951]
[1762521196779,0.50183,3230.6,3230.5,0.8951]
[1762521197287,9.915,3231.9,3231.0,0.5408]
[1762521197288,0.50175,3231.1,3231.0,0.5408]
[1762521197588,0.50173,3231.2,3231.1,0.8951]
[1762521198386,3.70945,3231.7,3231.6,0.5408]
[1762521198683,3.70945,3231.7,3230.5,1.09884654]
[1762521198684,0.50182,3230.6,3230.5,1.09884654]
[1762521198884,0.50184,3230.5,3230.3,1.09884654]
[1762521199278,3.2078,3230.7,3230.3,1.09884654]
[1762521199481,0.50184,3230.5,3230.3,1.09884654]
[1762521200100,0.50184,3230.5,3230.2,4.30664654]
[1762521200798,0.50184,3230.5,3230.1,1.09884654]
[1762521201001,0.50184,3230.5,3230.4,1.43590574]
[1762521201195,0.50184,3230.5,3230.4,0.54080574]
[1762521202202,0.50184,3230.5,3230.4,1.43590574]
[1762521202397,3.70961,3230.7,3230.6,0.8951]
[1762521202702,0.50175,3231.1,3231.0,1.4359]
[1762521203206,0.50175,3231.1,3231.0,0.5408]
[1762521203400,3.70955,3231.1,3231.0,0.5408]
[1762521203596,3.2078,3231.1,3231.0,0.5408]
[1762521203798,0.50175,3231.1,3231.0,1.4359]
[1762521204202,0.50174,3231.2,3231.1,0.8951]
[1762521204601,0.50175,3231.1,3231.0,0.5408]
[1762521204802,0.50174,3231.2,3231.1,0.8951]
[1762521205905,0.50174,3231.2,3231.0,1.64014214]
[1762521206106,11.01689488,3232.6,3231.0,1.64014214]
[1762521206107,1.10689488,3233.2,3232.2,1.4359]
[1762521206406,0.50141,3233.3,3233.0,3.2078]
[1762521206606,0.50142,3233.2,3233.0,3.2078]
[1762521206998,0.39512218,3233.7,3233.0,3.2078]
[1762521206999,0.39512218,3233.1,3233.0,5.20291345]
[1762521207204,0.00381671,3233.1,3233.0,4.10561375]
[1762521207409,0.39893889,3233.1,3233.0,4.10561375]
[1762521207905,3.60673889,3233.1,3233.0,3.21051375]
[1762521208300,7.66243889,3233.1,3233.0,0.00271375]
[1762521208707,0.50156,3232.3,3232.2,1.6481649]
[1762521209018,0.5016,3232.1,3231.8,3.2078]
[1762521209207,0.50162,3232.0,3231.8,3.2078]
[1762521209408,0.39512218,3232.3,3231.8,3.2078]
[1762521209616,0.50161,3232.0,3231.8,3.2078]
[1762521209802,0.89673218,3232.0,3231.8,3.21119838]
[1762521210008,0.39512218,3231.9,3231.8,3.21119838]
[1762521210309,0.39512218,3232.3,3231.8,3.21119838]
[1762521210702,0.89673218,3232.0,3231.8,3.21119838]
[1762521210901,0.50161,3232.0,3231.8,3.21119838]
[1762521211099,0.39512218,3231.9,3231.8,3.21119838]
[1762521211710,1.28602218,3231.9,3231.8,3.21119838]
[1762521213712,1.3926,3231.4,3231.3,3.2078]
[1762521213910,0.50179,3230.8,3230.7,3.2078]
[1762521214415,0.89691218,3230.8,3230.7,3.2078]
[1762521214808,0.89998724,3230.8,3230.7,3.21154383]
[1762521215011,0.39819724,3230.8,3230.7,3.21154383]
[1762521215214,0.00463771,3231.7,3230.7,12.31155728]
[1762521215514,0.50167,3231.6,3231.5,0.8766]
[1762521215806,0.00463771,3231.7,3231.5,0.8766]
[1762521216007,0.00463771,3231.7,3231.6,1.4191]
[1762521216206,0.00757555,3231.7,3231.6,1.4191]
[1762521216808,0.50168,3231.5,3231.4,4.30781345]
[1762521217118,0.50167,3231.6,3231.4,4.30781345]
[1762521217412,0.50168,3231.6,3231.4,3.2078]
[1762521217611,0.50168,3231.5,3231.4,3.2078]
[1762521218015,0.50167,3231.6,3231.4,4.0844]
[1762521218207,0.50922555,3231.7,3231.6,1.4191]
[1762521218407,0.00757555,3231.7,3231.4,3.2078]
[1762521218605,0.50168,3231.5,3231.4,3.2078]
[1762521219112,0.00757555,3231.7,3231.4,3.2078]
[1762521219315,0.50167,3231.6,3231.5,0.8766]
[1762521219514,0.50168,3231.5,3231.4,3.2078]
[1762521220507,0.00757555,3231.7,3231.4,3.2078]
[1762521220814,0.50168,3231.5,3231.4,3.2078]
[1762521221018,1.39258,3231.5,3231.4,3.2078]
[1762521222207,0.8909,3231.5,3231.4,3.2078]
[1762521222411,0.00757555,3231.7,3231.4,3.2078]
[1762521222609,0.50922555,3231.7,3231.6,0.9258]
[1762521223421,0.00757555,3231.7,3231.6,2.28983613]
[1762521223622,0.50159,3232.2,3232.1,0.9258]
[1762521223924,0.50159,3232.2,3232.1,4.1336]
[1762521224516,1.39192,3231.9,3231.8,0.82566291]
[1762521224716,0.50162,3231.9,3231.8,0.00463771]
[1762521225219,0.50162,3231.9,3231.8,0.82566291]
[1762521225616,0.00272723,3232.2,3231.8,1.75146291]
[1762521225816,0.50162,3231.9,3231.8,1.75146291]
[1762521226220,0.50162,3231.9,3231.8,0.93043771]
[1762521226418,0.50430723,3232.2,3232.1,0.9258]
[1762521228122,0.00272723,3232.2,3232.1,0.9258]
[1762521228317,0.00272723,3232.2,3232.1,1.74765561]
[1762521228518,0.50429723,3232.2,3232.1,1.74765561]
[1762521228720,0.00272723,3232.2,3232.1,1.74765561]
[1762521229028,2.723e-05,3232.2,3232.1,8.9258]